bitfinex/quotes_BTCUSD_20241003
["timestamp","ask_amount","ask_price","bid_price","bid_amount"]
[1727984047912,0.0170184,61017.0,61016.0,0.165525]
[1727984048132,0.0180184,61017.0,61016.0,0.165525]
[1727984048356,0.0180184,61017.0,61016.0,0.171525]
[1727984048579,0.0180184,61017.0,61016.0,0.165525]
[1727984048580,0.0170184,61017.0,61016.0,0.165525]
[1727984048803,0.0180184,61017.0,61016.0,0.174525]
[1727984049060,0.001,61017.0,61016.0,0.36071171]
[1727984049270,0.001018,61019.0,61016.0,0.18782071]
[1727984049524,0.001018,61019.0,61018.0,0.47510446]
[1727984051124,0.000818,61022.0,61021.0,0.168878]
[1727984051357,0.000818,61022.0,61021.0,0.386478]
[1727984051592,0.016129,61031.0,61030.0,0.163853]
[1727984051825,0.12370822,61037.0,61036.0,0.163837]
[1727984051826,0.000819,61037.0,61036.0,0.163837]
[1727984052066,0.000819,61037.0,61036.0,0.55705546]
[1727984052292,0.000819,61037.0,61036.0,0.56445656]
[1727984052527,0.000819,61037.0,61036.0,0.55705546]
[1727984053962,0.000819,61037.0,61036.0,0.56905546]
[1727984054195,0.000819,61037.0,61036.0,0.55705546]
[1727984054683,0.000819,61037.0,61036.0,0.56005546]
[1727984054914,0.000819,61037.0,61036.0,0.57205546]
[1727984055353,0.000819,61037.0,61036.0,0.56405546]
[1727984055610,0.000819,61037.0,61036.0,0.57605546]
[1727984056082,0.000819,61037.0,61036.0,0.187837]
[1727984056336,0.000819,61037.0,61036.0,0.175837]
[1727984056560,0.000819,61037.0,61036.0,0.187837]
[1727984056801,0.000819,61037.0,61036.0,0.163837]
[1727984057084,0.000819,61037.0,61036.0,0.175837]
[1727984057337,0.000819,61037.0,61036.0,0.188837]
[1727984057564,0.000819,61037.0,61036.0,0.176837]
[1727984057804,0.000819,61037.0,61036.0,0.166837]
[1727984058832,0.000819,61037.0,61036.0,0.169837]
[1727984059348,0.000819,61037.0,61036.0,0.166837]
[1727984059349,0.02650104,61037.0,61036.0,0.166837]
[1727984059565,0.02650104,61037.0,61036.0,0.45505546]
[1727984059796,0.02850104,61037.0,61036.0,0.45505546]
[1727984060049,0.02650104,61037.0,61036.0,0.45205546]
[1727984060271,0.02650104,61037.0,61036.0,0.46705546]
[1727984061203,0.02650104,61037.0,61036.0,0.178837]
[1727984062156,0.02650104,61037.0,61036.0,0.015]
[1727984062403,0.02650104,61037.0,61036.0,0.178837]
[1727984064185,0.02650104,61037.0,61036.0,0.46705546]
[1727984066303,0.000819,61037.0,61036.0,0.46705546]
[1727984069522,0.02650139,61037.0,61036.0,0.46705546]
[1727984070204,0.02650139,61037.0,61036.0,0.015]
[1727984070431,0.20732243,61037.0,61036.0,0.015]
[1727984070662,0.18163139,61037.0,61036.0,0.015]
[1727984072068,0.163841,61035.0,61032.0,0.001634]
[1727984072290,0.01697739,61034.0,61032.0,0.001634]
[1727984072499,0.01697739,61033.0,61032.0,0.001634]
[1727984072954,0.18082239,61033.0,61032.0,0.001634]
[1727984073393,0.01697739,61033.0,61032.0,0.001634]
[1727984073634,0.000819,61037.0,61034.0,0.163841]
[1727984073856,0.01687103,61036.0,61034.0,0.163841]
[1727984074087,0.01687103,61035.0,61034.0,0.163841]
[1727984074312,0.000819,61037.0,61033.0,0.19216304]
[1727984074313,0.02650405,61037.0,61033.0,0.19216304]
[1727984074574,0.02650405,61037.0,61034.0,0.327685]
[1727984074796,0.01689154,61036.0,61034.0,0.163841]
[1727984075016,0.02650405,61037.0,61034.0,0.163841]
[1727984075017,0.01689311,61035.0,61034.0,0.163841]
[1727984075471,0.01689311,61035.0,61033.0,0.19216304]
[1727984075708,0.01689311,61034.0,61033.0,0.35600804]
[1727984076409,0.01689311,61034.0,61032.0,0.006634]
[1727984076639,0.163838,61036.0,61033.0,0.163845]
[1727984076865,0.01687672,61035.0,61033.0,0.167844]
[1727984077105,0.163843,61034.0,61033.0,0.004]
[1727984077361,0.163843,61034.0,61033.0,0.008]
[1727984077362,0.27008047,61034.0,61033.0,0.008]
[1727984077580,0.239943,61034.0,61033.0,0.008]
[1727984078251,0.239943,61034.0,61033.0,0.004]
[1727984078535,0.163845,61033.0,61032.0,0.003634]
[1727984078988,0.163845,61033.0,61032.0,0.001634]
[1727984079453,0.18953192,61033.0,61032.0,0.001634]
[1727984079931,0.18953192,61033.0,61032.0,0.004634]
[1727984080389,0.18953192,61033.0,61032.0,0.006634]
[1727984080619,0.163845,61033.0,61032.0,0.006634]
[1727984081316,0.164664,61033.0,61032.0,0.006634]
[1727984083400,0.000819,61033.0,61032.0,0.170482]
[1727984083656,0.000819,61033.0,61032.0,0.006634]
[1727984083904,0.0265047,61033.0,61032.0,0.006634]
[1727984086238,0.000819,61033.0,61032.0,0.006634]
[1727984086456,0.000819,61033.0,61032.0,0.170482]
[1727984089219,0.000319,61033.0,61032.0,0.170482]
[1727984093700,0.02600417,61033.0,61032.0,0.170482]
[1727984098180,0.02600417,61033.0,61032.0,0.006634]
[1727984099055,0.02600417,61033.0,61032.0,0.003634]
[1727984099269,0.02600417,61033.0,61032.0,0.001634]
[1727984099485,0.19084917,61033.0,61032.0,0.002634]
[1727984099950,0.01825939,61033.0,61032.0,0.002634]
[1727984100232,0.001319,61033.0,61032.0,0.166482]
[1727984100465,0.01827961,61033.0,61032.0,0.259782]
[1727984100677,0.01827961,61033.0,61032.0,0.258782]
[1727984100678,0.01727961,61033.0,61032.0,0.258782]
[1727984100888,0.000319,61033.0,61032.0,0.258782]
[1727984101101,0.001319,61033.0,61032.0,0.258782]
[1727984101329,0.000319,61033.0,61032.0,0.258782]
[1727984101559,0.000319,61033.0,61032.0,0.165482]
[1727984101832,0.000319,61033.0,61032.0,0.006634]
[1727984102052,0.68311525,61033.0,61032.0,0.004634]
[1727984102304,0.43642704,61033.0,61032.0,0.003634]
[1727984102527,0.43642704,61033.0,61032.0,0.009634]
[1727984102528,0.48365151,61033.0,61032.0,0.009634]
[1727984102804,0.48365151,61033.0,61032.0,0.007634]
[1727984103018,1.03568327,61033.0,61032.0,0.007634]
[1727984103229,1.03568327,61033.0,61016.0,0.001634]
[1727984103230,0.163888,61017.0,61016.0,0.001634]
[1727984104610,0.19158223,61017.0,61016.0,0.001634]
[1727984104843,0.30897327,61017.0,61016.0,0.001634]
[1727984105057,0.30997327,61017.0,61016.0,0.001634]
[1727984105346,0.19458223,61017.0,61016.0,0.001634]
[1727984105573,0.31758223,61017.0,61016.0,0.001634]
[1727984105799,0.31658223,61017.0,61016.0,0.001634]
[1727984106028,0.36375219,61017.0,61016.0,0.001634]
[1727984106248,0.59810753,61017.0,61016.0,0.001634]
[1727984106458,0.55580657,61017.0,61016.0,0.001634]
[1727984106687,0.53011234,61017.0,61016.0,0.001634]
[1727984106923,0.52611234,61017.0,61016.0,0.001634]
[1727984107131,0.53611234,61017.0,61016.0,0.001634]
[1727984107345,0.54511234,61017.0,61016.0,0.002634]
[1727984107607,0.53511234,61017.0,61016.0,0.002634]
[1727984107847,0.53511234,61017.0,61005.0,0.001634]
[1727984108059,0.35608104,61006.0,61005.0,0.001634]
[1727984108541,0.56178104,61006.0,61005.0,0.001634]
[1727984108999,0.56378104,61006.0,61005.0,0.001634]
[1727984109771,0.6364451,61006.0,61005.0,0.001634]
[1727984110150,0.6364451,61006.0,61005.0,0.002634]
[1727984110151,0.58748338,61006.0,61005.0,0.002634]
[1727984110430,0.57348338,61006.0,61005.0,0.002634]
[1727984110585,0.009,61006.0,61005.0,0.166554]
[1727984110825,0.009,61006.0,61005.0,0.35871704]
[1727984111078,0.009,61006.0,61005.0,0.17465749]
[1727984111283,0.016,61006.0,61005.0,0.17465749]
[1727984111525,0.007,61006.0,61005.0,0.00973749]
[1727984111946,0.009,61006.0,61005.0,0.01073749]
[1727984112389,0.009,61006.0,61005.0,0.17465749]
[1727984113058,0.24668821,61011.0,61005.0,0.00973749]
[1727984113287,0.24668821,61011.0,61008.0,0.163911]
[1727984113513,0.24668821,61011.0,61007.0,0.163913]
[1727984113730,0.163902,61012.0,61007.0,0.163913]
[1727984113943,0.16391,61009.0,61005.0,0.170553]
[1727984114167,0.001,61006.0,61005.0,0.014634]
[1727984114392,0.001,61006.0,61005.0,0.165554]
[1727984114866,0.02669628,61006.0,61005.0,0.165554]
[1727984115112,0.02569628,61006.0,61005.0,0.165554]
[1727984115330,0.163891,61016.0,61012.0,0.163901]
[1727984115563,0.163891,61016.0,61011.0,0.163904]
[1727984115564,0.163894,61015.0,61011.0,0.163904]
[1727984116021,0.163902,61012.0,61008.0,0.45243926]
[1727984116239,0.163902,61012.0,61008.0,0.163912]
[1727984116727,0.163899,61013.0,61008.0,0.327824]
[1727984116929,0.163903,61012.0,61009.0,0.16391]
[1727984117367,0.163909,61010.0,61006.0,0.163916]
[1727984117593,0.34668821,61025.0,61006.0,0.163916]
[1727984117594,0.163905,61011.0,61007.0,0.163914]
[1727984117803,0.163906,61011.0,61008.0,0.001]
[1727984118021,0.163906,61011.0,61006.0,0.327836]
[1727984118240,0.18960198,61011.0,61008.0,0.002]
[1727984119343,0.32778,61017.0,61009.0,0.32982]
[1727984119565,0.327789,61015.0,61010.0,0.163905]
[1727984119793,0.327789,61015.0,61011.0,0.163904]
[1727984119794,0.491684,61015.0,61011.0,0.163904]
[1727984120011,0.163895,61015.0,61011.0,0.163902]
[1727984120450,0.163895,61015.0,61008.0,0.28952726]
[1727984120451,0.163899,61013.0,61008.0,0.28952726]
[1727984120678,0.001,61015.0,61008.0,0.001]
[1727984120898,0.163907,61010.0,61006.0,0.163916]
[1727984121122,0.163907,61010.0,61007.0,0.163914]
[1727984121542,0.163907,61010.0,61008.0,0.001]
[1727984122271,0.16391,61009.0,61008.0,0.001]
[1727984123148,0.16391,61009.0,61005.0,0.165552]
[1727984123379,0.16391,61009.0,61008.0,0.005]
[1727984123608,0.18960358,61010.0,61008.0,0.005]
[1727984123831,0.02569658,61010.0,61009.0,0.28852726]
[1727984124508,0.02569658,61010.0,61009.0,0.45243726]
[1727984124986,0.02569658,61010.0,61009.0,0.62693726]
[1727984125234,0.02569658,61010.0,61009.0,0.63093726]
[1727984126160,0.02569658,61010.0,61009.0,0.63493726]
[1727984126399,0.163879,61021.0,61018.0,0.163885]
[1727984126621,0.327741,61024.0,61019.0,0.163881]
[1727984126622,0.163873,61023.0,61019.0,0.163881]
[1727984126859,0.163877,61022.0,61019.0,0.163881]
[1727984127081,0.163879,61021.0,61016.0,0.327777]
[1727984127307,0.327752,61022.0,61017.0,0.163887]
[1727984127566,0.178878,61021.0,61018.0,0.002]
[1727984127811,0.178878,61021.0,61018.0,0.165885]
[1727984128044,0.171878,61021.0,61018.0,0.164885]
[1727984128275,0.008,61021.0,61018.0,0.001]
[1727984128508,0.171878,61021.0,61018.0,0.164885]
[1727984128962,0.163878,61021.0,61018.0,0.163885]
[1727984129418,0.165878,61021.0,61018.0,0.163885]
[1727984129856,0.165878,61021.0,61016.0,0.32778]
[1727984129857,0.002,61021.0,61014.0,0.28852726]
[1727984130091,0.24668821,61025.0,61013.0,0.163898]
[1727984130092,0.163891,61016.0,61013.0,0.163898]
[1727984131288,0.163891,61016.0,61009.0,0.79084526]
[1727984131289,0.163898,61014.0,61010.0,0.163905]
[1727984131513,0.327783,61016.0,61009.0,0.0914]
[1727984131737,0.1639,61013.0,61010.0,0.163907]
[1727984131965,0.327783,61016.0,61009.0,0.0914]
[1727984132221,0.327767,61019.0,61008.0,0.16391]
[1727984132461,0.163898,61014.0,61007.0,0.327828]
[1727984132701,0.163898,61014.0,61005.0,0.1939273]
[1727984132702,0.327797,61014.0,61005.0,0.1939273]
[1727984132934,0.1639,61013.0,61006.0,0.327834]
[1727984133174,0.163898,61014.0,61010.0,0.168906]
[1727984134022,0.35347408,61017.0,61008.0,0.327822]
[1727984134252,0.1639,61013.0,61010.0,0.168906]
[1727984135124,0.163904,61011.0,61010.0,0.005]
[1727984135331,0.327794,61014.0,61010.0,0.005]
[1727984135332,0.163899,61013.0,61010.0,0.005]
[1727984135564,0.163899,61013.0,61010.0,0.003]
[1727984135786,0.163899,61013.0,61010.0,0.165907]
[1727984136030,0.163897,61014.0,61011.0,0.163904]
[1727984136237,0.163899,61013.0,61010.0,0.165906]
[1727984136457,0.1639,61013.0,61010.0,0.005]
[1727984136695,0.3278,61013.0,61010.0,0.005]
[1727984136926,0.3278,61013.0,61010.0,0.009]
[1727984137139,0.327795,61014.0,61010.0,0.009]
[1727984137392,0.163902,61013.0,61010.0,0.009]
[1727984137609,0.163902,61012.0,61010.0,0.009]
[1727984138270,0.327792,61015.0,61010.0,0.009]
[1727984138496,0.163897,61014.0,61011.0,0.163903]
[1727984139351,0.163897,61014.0,61010.0,0.167906]
[1727984139585,0.163902,61013.0,61011.0,0.003]
[1727984139806,0.327796,61014.0,61011.0,0.003]
[1727984140008,0.1639,61013.0,61011.0,0.005]
[1727984140218,0.1639,61013.0,61011.0,0.002]
[1727984141550,0.163902,61012.0,61011.0,0.002]
[1727984142232,0.163891,61016.0,61010.0,0.32781]
[1727984142510,0.163897,61014.0,61011.0,0.007]
[1727984142949,0.163897,61014.0,61011.0,0.003]
[1727984143178,0.163897,61014.0,61011.0,0.012]
[1727984143395,0.327788,61015.0,61011.0,0.012]
[1727984143396,0.27308383,61013.0,61011.0,0.005]
[1727984143642,0.163902,61012.0,61011.0,0.007]
[1727984143868,0.163898,61014.0,61011.0,0.007]
[1727984144074,0.163898,61014.0,61011.0,0.170903]
[1727984144703,0.163898,61014.0,61011.0,0.165903]
[1727984144934,0.163898,61014.0,61011.0,0.168903]
[1727984145174,0.163894,61015.0,61011.0,0.168903]
[1727984145381,0.35347608,61017.0,61011.0,0.163903]
[1727984145586,0.163897,61014.0,61011.0,0.163903]
[1727984145798,0.163897,61014.0,61011.0,0.168903]
[1727984146019,0.163897,61014.0,61011.0,0.165903]
[1727984146249,0.37681953,61019.0,61011.0,0.327807]
[1727984146464,0.001,61017.0,61012.0,0.3278]
[1727984146677,0.163895,61015.0,61012.0,0.163901]
[1727984146886,0.163902,61012.0,61011.0,0.001]
[1727984147098,0.001,61017.0,61010.0,0.163905]
[1727984147099,0.327787,61016.0,61010.0,0.163905]
[1727984147341,0.16391,61009.0,61008.0,0.001638]
[1727984148071,0.21302624,61009.0,61008.0,0.001638]
[1727984148522,0.16391,61009.0,61008.0,0.001638]
[1727984148750,0.21302624,61009.0,61008.0,0.001638]
[1727984149005,0.327811,61011.0,61009.0,0.163908]
[1727984149006,0.04911624,61011.0,61009.0,0.163908]
[1727984149217,0.163906,61011.0,61008.0,0.001638]
[1727984149438,0.04911624,61011.0,61008.0,0.001638]
[1727984149672,0.163908,61010.0,61008.0,0.001638]
[1727984149905,0.16791,61009.0,61008.0,0.001638]
[1727984150779,0.16691,61009.0,61008.0,0.001638]
[1727984151709,0.16391,61009.0,61008.0,0.001638]
[1727984152138,0.16491,61009.0,61008.0,0.001638]
[1727984152771,0.16791,61009.0,61008.0,0.001638]
[1727984154259,0.21703744,61009.0,61008.0,0.001638]
[1727984154460,0.21705164,61009.0,61008.0,0.001638]
[1727984155311,0.16791,61009.0,61008.0,0.001638]
[1727984155825,0.24162247,61009.0,61008.0,0.001638]
[1727984156252,0.26619329,61009.0,61008.0,0.001638]
[1727984156895,0.29188997,61009.0,61008.0,0.001638]
[1727984157370,0.16791,61009.0,61008.0,0.001638]
[1727984157616,0.004,61009.0,61008.0,0.001638]
[1727984158272,0.05117932,61009.0,61008.0,0.001638]
[1727984158482,0.04917932,61009.0,61008.0,0.16855]
[1727984158689,0.04917932,61009.0,61008.0,0.004638]
[1727984158916,0.04917932,61009.0,61008.0,0.006638]
[1727984159378,0.23767698,61010.0,61008.0,0.006638]
[1727984159583,0.07376898,61010.0,61008.0,0.006638]
[1727984160014,0.04918047,61010.0,61008.0,0.006638]
[1727984160240,0.09835864,61013.0,61008.0,0.006638]
[1727984160241,0.04918047,61011.0,61008.0,0.006638]
[1727984160499,0.04918047,61012.0,61011.0,0.163904]
[1727984160753,0.04918047,61012.0,61011.0,0.262904]
[1727984160977,0.04999947,61014.0,61012.0,0.1639]
[1727984161208,0.04999544,61014.0,61012.0,0.1639]
[1727984161416,0.000819,61014.0,61012.0,0.1639]
[1727984161632,0.04917644,61013.0,61012.0,0.1639]
[1727984161897,0.000819,61014.0,61011.0,0.099]
[1727984162114,0.000819,61014.0,61008.0,0.003638]
[1727984162115,0.327801,61013.0,61008.0,0.003638]
[1727984162336,0.2130828,61011.0,61008.0,0.001638]
[1727984162555,0.2130828,61011.0,61008.0,0.16555]
[1727984163195,0.16391,61009.0,61008.0,0.001638]
[1727984163689,0.04918039,61009.0,61008.0,0.001638]
[1727984163924,0.02569627,61009.0,61008.0,0.76555]
[1727984165227,0.02569627,61009.0,61008.0,0.77055]
[1727984165442,0.02569627,61009.0,61008.0,0.76855]
[1727984165658,0.02569627,61009.0,61008.0,0.94385]
[1727984166271,0.000819,61014.0,61013.0,0.163899]
[1727984168146,0.000819,61014.0,61013.0,0.164899]
[1727984168356,0.000819,61014.0,61013.0,0.001]
[1727984169280,0.164715,61014.0,61013.0,0.001]
[1727984169758,0.19041044,61014.0,61013.0,0.001]
[1727984170001,0.164715,61014.0,61013.0,0.001]
[1727984170444,0.16391,61009.0,61008.0,0.601638]
[1727984170684,0.163908,61010.0,61008.0,0.601638]
[1727984170906,0.327806,61012.0,61008.0,0.601638]
[1727984170907,0.16391,61009.0,61008.0,0.601638]
[1727984171349,0.163907,61010.0,61008.0,0.601638]
[1727984171567,0.40156147,61012.0,61008.0,0.601638]
[1727984171568,0.37697631,61012.0,61008.0,0.601638]
[1727984171793,0.37698031,61011.0,61008.0,0.601638]
[1727984172052,0.001,61009.0,61008.0,0.601638]
[1727984172522,0.16391,61009.0,61008.0,0.601638]
[1727984173195,0.18960651,61009.0,61008.0,0.601638]
[1727984174301,0.19060651,61009.0,61008.0,0.601638]
[1727984175688,0.23979861,61009.0,61008.0,0.601638]
[1727984176361,0.16491,61009.0,61008.0,0.601638]
[1727984176596,0.2632942,61009.0,61008.0,0.601638]
[1727984177718,0.07480377,61009.0,61008.0,0.601638]
[1727984177950,0.05020154,61009.0,61008.0,0.601638]
[1727984178183,0.001,61009.0,61008.0,0.601638]
[1727984178625,0.23771277,61010.0,61008.0,0.601638]
[1727984178840,0.16391,61009.0,61008.0,0.606638]
[1727984180012,0.164729,61009.0,61008.0,0.606638]
[1727984180941,0.19042463,61009.0,61008.0,0.603638]
[1727984181169,0.164729,61009.0,61008.0,0.605638]
[1727984181614,0.164729,61009.0,61008.0,0.603638]
[1727984182032,0.164729,61009.0,61008.0,0.606638]
[1727984182302,0.000819,61009.0,61008.0,0.606638]
[1727984182765,0.21393237,61009.0,61008.0,0.606638]
[1727984182992,0.164729,61009.0,61008.0,0.606638]
[1727984183894,0.1904247,61009.0,61008.0,0.606638]
[1727984185930,0.26423002,61009.0,61008.0,0.606638]
[1727984186378,0.23853432,61009.0,61008.0,0.606638]
[1727984187028,0.23853432,61009.0,61008.0,0.603638]
[1727984187298,0.23853432,61009.0,61008.0,0.605638]
[1727984187509,0.23853432,61009.0,61008.0,0.603638]
[1727984187721,0.23853432,61009.0,61008.0,0.604638]
[1727984189187,0.23853492,61009.0,61008.0,0.604638]
[1727984189610,0.26423171,61009.0,61008.0,0.604638]
[1727984189865,0.23853492,61009.0,61008.0,0.604638]
[1727984190517,0.23853492,61009.0,61008.0,0.603638]
[1727984190724,0.23853492,61009.0,61008.0,0.601638]
[1727984190944,0.23853492,61009.0,61008.0,0.602638]
[1727984191415,0.07462492,61009.0,61008.0,0.602638]
[1727984191677,0.07462492,61009.0,61008.0,0.601638]
[1727984191895,0.07662492,61009.0,61008.0,0.601638]
[1727984192110,0.07562492,61009.0,61008.0,0.601638]
[1727984192324,0.23853492,61009.0,61008.0,0.601638]
[1727984192558,0.23853492,61009.0,61008.0,0.60353038]
[1727984192764,0.07062492,61009.0,61008.0,0.60353038]
[1727984193199,0.09632044,61009.0,61008.0,0.60353038]
[1727984193622,0.09632044,61009.0,61008.0,0.60453038]
[1727984193835,0.02569552,61009.0,61008.0,0.60453038]
[1727984194981,0.18960552,61009.0,61008.0,0.60453038]
[1727984196315,0.16391,61009.0,61008.0,0.60453038]
[1727984196523,0.16391,61009.0,61008.0,0.60353038]
[1727984196747,0.16391,61009.0,61008.0,0.60153038]
[1727984196960,0.16491,61009.0,61008.0,0.60153038]
[1727984197427,0.24671,61009.0,61008.0,0.60153038]
[1727984197661,0.34612121,61009.0,61008.0,0.60153038]
[1727984197873,0.24771,61009.0,61008.0,0.60153038]
[1727984198103,0.2643301,61009.0,61008.0,0.60153038]
[1727984198318,0.16591,61009.0,61008.0,0.60153038]
[1727984198549,0.2643301,61009.0,61008.0,0.60153038]
[1727984199468,0.2643301,61009.0,61008.0,0.59953038]
[1727984199681,0.29002676,61009.0,61008.0,0.59953038]
[1727984199897,0.2643301,61009.0,61008.0,0.59953038]
[1727984203303,0.29003753,61009.0,61008.0,0.59953038]
[1727984203984,0.29003753,61009.0,61008.0,0.60116838]
[1727984204214,0.29085653,61009.0,61008.0,0.60116838]
[1727984208197,0.19242606,61009.0,61008.0,0.60116838]
[1727984208459,0.31546415,61009.0,61008.0,0.60116838]
[1727984208880,0.19442606,61009.0,61008.0,0.60116838]
[1727984209086,0.19242606,61009.0,61008.0,0.60116838]
[1727984209299,0.31546415,61009.0,61008.0,0.60116838]
[1727984209748,0.28876709,61009.0,61008.0,0.60116838]
[1727984209975,0.29076709,61009.0,61008.0,0.60216838]
[1727984210203,0.29376709,61009.0,61008.0,0.60216838]
[1727984210646,0.29076709,61009.0,61008.0,0.60216838]
[1727984210885,0.21504599,61009.0,61008.0,0.60216838]
[1727984211158,0.22304599,61009.0,61008.0,0.60316838]
[1727984212669,0.24874382,61009.0,61008.0,0.60316838]
[1727984214453,0.24784382,61009.0,61008.0,0.60316838]
[1727984214910,0.52747984,61009.0,61008.0,0.60316838]
[1727984215138,0.52737984,61009.0,61008.0,0.60316838]
[1727984215363,0.19952683,61009.0,61008.0,0.60316838]
[1727984215585,0.24678882,61009.0,61008.0,0.60316838]
[1727984215832,0.41197553,61009.0,61008.0,0.60316838]
[1727984216060,0.73091813,61009.0,61008.0,0.60316838]
[1727984216284,0.7046203,61009.0,61008.0,0.60316838]
[1727984216709,0.7043203,61009.0,61008.0,0.60316838]
[1727984216924,0.7041203,61009.0,61008.0,0.60316838]
[1727984217139,0.6928203,61009.0,61008.0,0.60116838]
[1727984217340,0.7067203,61009.0,61008.0,0.60216838]
[1727984217593,0.7095203,61009.0,61008.0,0.60316838]
[1727984217855,0.7070203,61009.0,61008.0,0.60316838]
[1727984218084,0.7067203,61009.0,61008.0,0.60316838]
[1727984218531,0.7063203,61009.0,61008.0,0.60316838]
[1727984218744,0.7062203,61009.0,61008.0,0.60316838]
[1727984219654,0.73191991,61009.0,61008.0,0.60316838]
[1727984219921,0.7062203,61009.0,61008.0,0.60316838]
[1727984220160,0.6832203,61009.0,61008.0,0.60316838]
[1727984220447,0.176729,61009.0,61008.0,0.60316838]
[1727984221471,0.27505075,61009.0,61008.0,0.60316838]
[1727984221722,0.29963118,61009.0,61008.0,0.60316838]
[1727984221962,0.29964274,61009.0,61008.0,0.60316838]
[1727984222213,0.173729,61009.0,61008.0,0.60216838]
[1727984222435,0.182729,61009.0,61008.0,0.60316838]
[1727984222674,0.182729,61009.0,61008.0,0.60216838]
[1727984222675,0.19442738,61009.0,61008.0,0.60216838]
[1727984222902,0.59982068,61009.0,61008.0,0.60316838]
[1727984223353,0.58282068,61009.0,61008.0,0.60116838]
[1727984223602,0.58782068,61009.0,61008.0,0.60116838]
[1727984223813,0.59782068,61009.0,61008.0,0.60216838]
[1727984224298,0.59982068,61009.0,61008.0,0.60216838]
[1727984224535,0.61382068,61009.0,61008.0,0.60316838]
[1727984224993,0.66103134,61009.0,61008.0,0.60316838]
[1727984225388,0.61382068,61009.0,61008.0,0.60316838]
[1727984225721,0.66102895,61009.0,61008.0,0.60316838]
[1727984225933,0.61382068,61009.0,61008.0,0.60316838]
[1727984226138,0.6630284,61009.0,61008.0,0.60316838]
[1727984226354,0.63733002,61009.0,61008.0,0.60316838]
[1727984227713,1.34025802,61009.0,61008.0,0.60316838]
[1727984227873,1.04535502,61009.0,61008.0,0.60316838]
[1727984228202,0.63733002,61009.0,61008.0,0.60316838]
[1727984228364,0.44303672,61009.0,61008.0,0.60316838]
[1727984228561,0.23793672,61009.0,61008.0,0.60316838]
[1727984228740,0.190729,61009.0,61008.0,0.60316838]
[1727984229567,0.190729,61009.0,61008.0,0.68186838]
[1727984229568,0.18542643,61009.0,61008.0,0.68186838]
[1727984229825,0.21142643,61009.0,61008.0,0.68286838]
[1727984230025,0.21142643,61009.0,61008.0,0.68186838]
[1727984230475,0.22042643,61009.0,61008.0,0.68286838]
[1727984230885,0.20842643,61009.0,61008.0,0.68286838]
[1727984231034,0.21542643,61009.0,61008.0,0.68286838]
[1727984231250,0.21542643,61009.0,61008.0,0.60216838]
[1727984236214,0.189729,61009.0,61008.0,0.60216838]
[1727984243015,0.21542568,61009.0,61008.0,0.60216838]
[1727984243417,0.05651568,61009.0,61008.0,0.60216838]
[1727984243649,0.22042568,61009.0,61008.0,0.60216838]
[1727984244164,0.05651568,61009.0,61008.0,0.60216838]
[1727984244377,0.22042568,61009.0,61008.0,0.60216838]
[1727984245033,0.05651568,61009.0,61008.0,0.60216838]
[1727984246064,0.05651568,61009.0,61008.0,0.95837368]
[1727984246283,0.030819,61009.0,61008.0,0.95837368]
[1727984246432,0.030819,61009.0,61008.0,1.13397368]
[1727984246803,0.000819,61014.0,61013.0,0.339499]
[1727984247028,0.24668821,61032.0,61020.0,0.16388]
[1727984247242,0.24668821,61032.0,61020.0,0.5317733]
[1727984248722,0.41053721,61032.0,61020.0,0.5317733]
[1727984248936,0.24668821,61032.0,61020.0,0.5317733]
[1727984249372,0.000319,61033.0,61020.0,0.5317733]
[1727984249578,0.000319,61033.0,61032.0,0.334148]
[1727984251017,0.000319,61033.0,61032.0,0.340148]
[1727984252031,0.014319,61033.0,61032.0,0.340148]
[1727984252258,0.014319,61033.0,61032.0,0.334148]
[1727984252456,0.000319,61033.0,61032.0,0.334148]
[1727984252690,0.001319,61033.0,61032.0,0.356148]
[1727984253267,0.001319,61033.0,61032.0,0.357148]
[1727984253268,0.000319,61033.0,61032.0,0.357148]
[1727984253483,0.001319,61033.0,61032.0,0.368148]
[1727984253942,0.001319,61033.0,61032.0,0.1813]
[1727984254390,0.001319,61033.0,61032.0,0.357148]
[1727984255078,0.000319,61033.0,61032.0,0.1823]
[1727984255318,0.001319,61033.0,61032.0,0.1883]
[1727984256243,0.001319,61033.0,61032.0,0.352148]
[1727984257392,0.165164,61033.0,61032.0,0.1115]
[1727984257614,0.001319,61033.0,61032.0,0.1115]
[1727984257832,0.165164,61033.0,61032.0,0.1115]
[1727984258059,0.165164,61033.0,61032.0,0.018]
[1727984258985,0.163852,61031.0,61028.0,0.163858]
[1727984259418,0.328013,61033.0,61027.0,0.0783]
[1727984259656,0.163848,61032.0,61028.0,0.163858]
[1727984259907,0.000319,61033.0,61030.0,0.163853]
[1727984260111,0.163848,61032.0,61029.0,0.163856]
[1727984262192,0.000319,61033.0,61029.0,0.32771]
[1727984262410,0.000319,61033.0,61032.0,0.163848]
[1727984264476,0.001319,61033.0,61032.0,0.163848]
[1727984264928,0.000319,61033.0,61032.0,0.163848]
[1727984265211,0.000319,61033.0,61032.0,0.246448]
[1727984265440,0.001319,61033.0,61032.0,0.246448]
[1727984265657,0.001319,61033.0,61032.0,0.34343729]
[1727984265869,0.000319,61033.0,61032.0,0.341648]
[1727984266994,0.000319,61033.0,61032.0,0.60483471]
[1727984267247,0.001319,61033.0,61032.0,0.60483471]
[1727984267929,0.000319,61033.0,61032.0,0.60483471]
[1727984268144,0.001319,61033.0,61032.0,0.60983471]
[1727984268615,0.000319,61033.0,61032.0,0.60483471]
[1727984268840,0.000319,61033.0,61032.0,0.60983471]
[1727984269094,0.001319,61033.0,61032.0,0.60983471]
[1727984269323,0.001319,61033.0,61032.0,0.61183471]
[1727984269543,0.0002,61039.0,61036.0,0.5315303]
[1727984269771,0.0002,61039.0,61036.0,0.69471701]
[1727984271089,0.001819,61037.0,61036.0,0.69971701]
[1727984271302,0.001819,61037.0,61036.0,0.71371701]
[1727984271767,0.000819,61037.0,61036.0,0.70871701]
[1727984272224,0.001819,61037.0,61036.0,0.71371701]